[Event "Titled Tuesday Blitz August 22 Early 2023"]
[White "Shuvalova, Polina"]
[Black "Rietze, Clemens, Dr."]
[WhiteFideId "24171760"]
[BlackFideId "24620351"]
[WhiteElo "2618"]
[BlackElo "2458"]
[Result "1-0"]
[Round "11"]
[TimeControl "180+1"]
[Date "2023.08.22"]
[WhiteClock "0:01:12"]
[BlackClock "0:00:06"]
[Board "83"]

1. f4 {[%clk 0:03:00]}  Nf6 {[%clk 0:02:54]} 2. Nf3 {[%clk 0:02:59]}  g6 {[%clk 0:02:54]} 3. g3 {[%clk 0:03:00]}  Bg7 {[%clk 0:02:55]} 4. Bg2 {[%clk 0:03:01]}  O-O {[%clk 0:02:56]} 5. O-O {[%clk 0:03:01]}  d6 {[%clk 0:02:56]} 6. d3 {[%clk 0:03:02]}  Nc6 {[%clk 0:02:56]} 7. e4 {[%clk 0:03:02]}  e5 {[%clk 0:02:50]} 8. Nc3 {[%clk 0:03:01]}  exf4 {[%clk 0:02:48]} 9. Bxf4 {[%clk 0:03:01]}  Nh5 {[%clk 0:02:24]} 10. Bg5 {[%clk 0:03:00]}  f6 {[%clk 0:02:19]} 11. Be3 {[%clk 0:02:59]}  Bg4 {[%clk 0:02:03]} 12. Qd2 {[%clk 0:02:59]}  f5 {[%clk 0:01:58]} 13. Ng5 {[%clk 0:02:55]}  fxe4 {[%clk 0:01:56]} 14. Bxe4 {[%clk 0:02:50]}  Nf6 {[%clk 0:01:46]} 15. Bg2 {[%clk 0:02:41]}  h6 {[%clk 0:01:43]} 16. h3 {[%clk 0:02:27]}  Bd7 {[%clk 0:01:26]} 17. Nge4 {[%clk 0:02:18]}  Kh7 {[%clk 0:01:18]} 18. Nxf6+ {[%clk 0:02:15]}  Rxf6 {[%clk 0:01:18]} 19. Nd5 {[%clk 0:02:11]}  Rf5 {[%clk 0:01:01]} 20. g4 {[%clk 0:02:01]}  Rxf1+ {[%clk 0:00:58]} 21. Rxf1 {[%clk 0:02:02]}  Ne5 {[%clk 0:00:59]} 22. b3 {[%clk 0:01:56]}  c6 {[%clk 0:00:59]} 23. Nf4 {[%clk 0:01:56]}  Qe7 {[%clk 0:00:15]} 24. d4 {[%clk 0:01:56]}  Nf7 {[%clk 0:00:16]} 25. Qd3 {[%clk 0:01:53]}  Nh8 {[%clk 0:00:14]} 26. Be4 {[%clk 0:01:46]}  Be8 {[%clk 0:00:15]} 27. Nh5 {[%clk 0:01:38]}  d5 {[%clk 0:00:14]} 28. Bg2 {[%clk 0:01:38]}  Bf7 {[%clk 0:00:14]} 29. Nxg7 {[%clk 0:01:36]}  Kxg7 {[%clk 0:00:14]} 30. Qd2 {[%clk 0:01:35]}  g5 {[%clk 0:00:13]} 31. Bf2 {[%clk 0:01:33]}  Bg6 {[%clk 0:00:12]} 32. Bg3 {[%clk 0:01:32]}  Kh7 {[%clk 0:00:12]} 33. Be5 {[%clk 0:01:31]}  Nf7 {[%clk 0:00:12]} 34. Bg3 {[%clk 0:01:24]}  Re8 {[%clk 0:00:11]} 35. Kh2 {[%clk 0:01:22]}  Qe2 {[%clk 0:00:11]} 36. Rf2 {[%clk 0:01:20]}  Qxd2 {[%clk 0:00:10]} 37. Rxd2 {[%clk 0:01:21]}  Re3 {[%clk 0:00:11]} 38. c4 {[%clk 0:01:19]}  dxc4 {[%clk 0:00:10]} 39. bxc4 {[%clk 0:01:19]}  Be4 {[%clk 0:00:10]} 40. Bf2 {[%clk 0:01:17]}  Rd3 {[%clk 0:00:06]} 41. Bxe4+ {[%clk 0:01:12]} 1-0


[Site "https://www.chess.com"]

[Event "Titled Tuesday Blitz August 22 Early 2023"]
[White "Vlassov, Nikolai"]
[Black "Sai Han Thiha"]
[WhiteFideId "4103360"]
[BlackFideId "13012290"]
[WhiteElo "2600"]
[BlackElo "2451"]
[Result "1-0"]
[Round "11"]
[TimeControl "180+1"]
[Date "2023.08.22"]
[WhiteClock "0:00:14"]
[BlackClock "0:00:00"]
[Board "84"]

1. e4 {[%clk 0:03:00]}  c6 {[%clk 0:02:59]} 2. d4 {[%clk 0:03:00]}  d5 {[%clk 0:03:00]} 3. f3 {[%clk 0:03:01]}  dxe4 {[%clk 0:03:01]} 4. fxe4 {[%clk 0:03:01]}  e5 {[%clk 0:03:02]} 5. Nf3 {[%clk 0:03:01]}  Bg4 {[%clk 0:03:02]} 6. Bc4 {[%clk 0:02:54]}  Nd7 {[%clk 0:03:02]} 7. c3 {[%clk 0:02:49]}  Bh5 {[%clk 0:02:57]} 8. O-O {[%clk 0:02:46]}  Ngf6 {[%clk 0:02:56]} 9. Qb3 {[%clk 0:02:36]}  b5 {[%clk 0:02:52]} 10. Bd3 {[%clk 0:02:34]}  Bd6 {[%clk 0:02:47]} 11. Bg5 {[%clk 0:02:31]}  Qc7 {[%clk 0:02:33]} 12. Nbd2 {[%clk 0:02:28]}  O-O {[%clk 0:02:31]} 13. a4 {[%clk 0:02:24]}  a6 {[%clk 0:02:29]} 14. Nh4 {[%clk 0:02:07]}  exd4 {[%clk 0:02:25]} 15. cxd4 {[%clk 0:02:07]}  Bxh2+ {[%clk 0:02:22]} 16. Kh1 {[%clk 0:02:08]}  Ng4 {[%clk 0:01:40]} 17. e5 {[%clk 0:01:57]}  c5 {[%clk 0:01:22]} 18. axb5 {[%clk 0:01:21]}  cxd4 {[%clk 0:01:21]} 19. e6 {[%clk 0:01:06]}  Nc5 {[%clk 0:01:04]} 20. exf7+ {[%clk 0:00:51]}  Rxf7 {[%clk 0:00:57]} 21. Qd5 {[%clk 0:00:41]}  Rf8 {[%clk 0:00:50]} 22. Bc4 {[%clk 0:00:36]}  Bg1 {[%clk 0:00:40]} 23. Ndf3 {[%clk 0:00:30]}  Kh8 {[%clk 0:00:35]} 24. Kxg1 {[%clk 0:00:19]}  Rxf3 {[%clk 0:00:34]} 25. Nxf3 {[%clk 0:00:18]}  Rxf3 {[%clk 0:00:34]} 26. Rxf3 {[%clk 0:00:18]}  Qh2+ {[%clk 0:00:33]} 27. Kf1 {[%clk 0:00:18]}  Qh1+ {[%clk 0:00:32]} 28. Ke2 {[%clk 0:00:18]}  Qxg2+ {[%clk 0:00:32]} 29. Ke1 {[%clk 0:00:18]}  Qh1+ {[%clk 0:00:14]} 30. Kd2 {[%clk 0:00:18]}  Qg2+ {[%clk 0:00:13]} 31. Be2 {[%clk 0:00:16]}  h6 {[%clk 0:00:02]} 32. Rf8+ {[%clk 0:00:15]}  Kh7 {[%clk 0:00:00]} 33. Qxg2 {[%clk 0:00:14]} 1-0


[Site "https://www.chess.com"]

[Event "Titled Tuesday Blitz August 22 Early 2023"]
[White "Aggelis, Nikolaos"]
[Black "Ronka, Erik"]
[WhiteFideId "4213220"]
[BlackFideId "505080"]
[WhiteElo "2570"]
[BlackElo "2420"]
[Result "1-0"]
[Round "11"]
[TimeControl "180+1"]
[Date "2023.08.22"]
[WhiteClock "0:01:17"]
[BlackClock "0:00:03"]
[Board "87"]

1. c4 {[%clk 0:03:00]}  c6 {[%clk 0:02:58]} 2. g3 {[%clk 0:03:00]}  d5 {[%clk 0:02:59]} 3. cxd5 {[%clk 0:02:59]}  cxd5 {[%clk 0:02:57]} 4. Nf3 {[%clk 0:03:00]}  Nc6 {[%clk 0:02:56]} 5. Bg2 {[%clk 0:03:00]}  Nf6 {[%clk 0:02:57]} 6. O-O {[%clk 0:03:01]}  Bg4 {[%clk 0:02:52]} 7. d4 {[%clk 0:02:58]}  Bxf3 {[%clk 0:02:49]} 8. Bxf3 {[%clk 0:02:51]}  e6 {[%clk 0:02:50]} 9. Nc3 {[%clk 0:02:51]}  Be7 {[%clk 0:02:32]} 10. Rb1 {[%clk 0:02:45]}  O-O {[%clk 0:02:30]} 11. a3 {[%clk 0:02:45]}  Rc8 {[%clk 0:02:12]} 12. Qd3 {[%clk 0:02:42]}  Na5 {[%clk 0:02:08]} 13. Bf4 {[%clk 0:02:36]}  Nc4 {[%clk 0:02:06]} 14. Rfc1 {[%clk 0:02:30]}  h6 {[%clk 0:01:51]} 15. a4 {[%clk 0:02:23]}  Bd6 {[%clk 0:01:50]} 16. b3 {[%clk 0:02:22]}  Bxf4 {[%clk 0:01:50]} 17. gxf4 {[%clk 0:02:23]}  Nd6 {[%clk 0:01:50]} 18. e3 {[%clk 0:02:19]}  Qa5 {[%clk 0:01:43]} 19. Ne2 {[%clk 0:02:15]}  Qb4 {[%clk 0:01:37]} 20. Ng3 {[%clk 0:02:10]}  Rxc1+ {[%clk 0:01:29]} 21. Rxc1 {[%clk 0:02:09]}  Rc8 {[%clk 0:01:30]} 22. Rxc8+ {[%clk 0:02:06]}  Nxc8 {[%clk 0:01:31]} 23. f5 {[%clk 0:02:05]}  Nd6 {[%clk 0:01:25]} 24. fxe6 {[%clk 0:02:05]}  fxe6 {[%clk 0:01:26]} 25. Qc2 {[%clk 0:02:01]}  Qb6 {[%clk 0:01:14]} 26. Qc5 {[%clk 0:01:54]}  Nd7 {[%clk 0:00:46]} 27. Qc2 {[%clk 0:01:35]}  Kf7 {[%clk 0:00:39]} 28. Nh5 {[%clk 0:01:34]}  Nf6 {[%clk 0:00:30]} 29. Nf4 {[%clk 0:01:25]}  Nde4 {[%clk 0:00:18]} 30. Qc8 {[%clk 0:01:23]}  g5 {[%clk 0:00:15]} 31. Nd3 {[%clk 0:01:18]}  Qc6 {[%clk 0:00:03]} 32. Ne5+ {[%clk 0:01:17]} 1-0


[Site "https://www.chess.com"]

[Event "Titled Tuesday Blitz August 22 Early 2023"]
[White "Biregina"]
[Black "Mihailidis, Anastasios"]
[BlackFideId "4205588"]
[WhiteElo "2412"]
[BlackElo "2530"]
[Result "0-1"]
[Round "11"]
[TimeControl "180+1"]
[Date "2023.08.22"]
[WhiteClock "0:00:01"]
[BlackClock "0:00:48"]
[Board "90"]

1. d4 {[%clk 0:03:00]}  d5 {[%clk 0:02:56]} 2. Nf3 {[%clk 0:03:01]}  Nf6 {[%clk 0:02:56]} 3. e3 {[%clk 0:03:02]}  e6 {[%clk 0:02:56]} 4. b3 {[%clk 0:03:02]}  Be7 {[%clk 0:02:55]} 5. Bb2 {[%clk 0:03:03]}  O-O {[%clk 0:02:56]} 6. Ne5 {[%clk 0:03:01]}  c5 {[%clk 0:02:55]} 7. Nd2 {[%clk 0:02:58]}  Nbd7 {[%clk 0:02:54]} 8. f4 {[%clk 0:02:57]}  Ne8 {[%clk 0:02:51]} 9. Bd3 {[%clk 0:02:48]}  f6 {[%clk 0:02:48]} 10. Qh5 {[%clk 0:02:35]}  f5 {[%clk 0:02:39]} 11. O-O-O {[%clk 0:02:19]}  Nef6 {[%clk 0:02:36]} 12. Qh3 {[%clk 0:02:17]}  a6 {[%clk 0:02:30]} 13. Rhg1 {[%clk 0:01:54]}  g6 {[%clk 0:02:18]} 14. Ndf3 {[%clk 0:01:44]}  Ne4 {[%clk 0:02:11]} 15. Bxe4 {[%clk 0:01:20]}  dxe4 {[%clk 0:02:12]} 16. Nxd7 {[%clk 0:01:18]}  Bxd7 {[%clk 0:02:10]} 17. Ne5 {[%clk 0:01:15]}  Qe8 {[%clk 0:02:00]} 18. g4 {[%clk 0:00:42]}  cxd4 {[%clk 0:01:55]} 19. Bxd4 {[%clk 0:00:16]}  Bc6 {[%clk 0:01:22]} 20. gxf5 {[%clk 0:00:13]}  exf5 {[%clk 0:01:21]} 21. Qh6 {[%clk 0:00:09]}  Rf6 {[%clk 0:00:58]} 22. Nxc6 {[%clk 0:00:08]}  Qxc6 {[%clk 0:00:59]} 23. Bxf6 {[%clk 0:00:05]}  Bxf6 {[%clk 0:00:59]} 24. Rd4 {[%clk 0:00:01]}  Bxd4 {[%clk 0:00:52]} 25. exd4 {[%clk 0:00:02]}  Rc8 {[%clk 0:00:53]} 26. c4 {[%clk 0:00:02]}  Qd6 {[%clk 0:00:53]} 27. d5 {[%clk 0:00:02]}  b5 {[%clk 0:00:53]} 28. Kb1 {[%clk 0:00:02]}  bxc4 {[%clk 0:00:53]} 29. bxc4 {[%clk 0:00:02]}  Rxc4 {[%clk 0:00:52]} 30. Qh3 {[%clk 0:00:03]}  Rb4+ {[%clk 0:00:49]} 31. Kc1 {[%clk 0:00:02]}  Qc5+ {[%clk 0:00:49]} 32. Kd2 {[%clk 0:00:02]}  Rd4+ {[%clk 0:00:48]} 33. Ke2 {[%clk 0:00:01]}  Qc2+ {[%clk 0:00:48]} 34. Ke3 {[%clk 0:00:01]}  Rd3# {[%clk 0:00:48]} 0-1


[Site "https://www.chess.com"]

[Event "Titled Tuesday Blitz August 22 Early 2023"]
[White "Pavlidou, Ekaterini"]
[Black "Kovalevsky, Stanislav"]
[WhiteFideId "4213262"]
[BlackFideId "13508598"]
[WhiteElo "2374"]
[BlackElo "2503"]
[Result "0-1"]
[Round "11"]
[TimeControl "180+1"]
[Date "2023.08.22"]
[WhiteClock "0:00:00"]
[BlackClock "0:00:04"]
[Board "96"]

1. d4 {[%clk 0:03:00]}  d5 {[%clk 0:02:59]} 2. c4 {[%clk 0:03:01]}  c6 {[%clk 0:02:59]} 3. Nf3 {[%clk 0:03:01]}  Nf6 {[%clk 0:02:59]} 4. Nc3 {[%clk 0:02:58]}  dxc4 {[%clk 0:02:59]} 5. a4 {[%clk 0:02:56]}  Bf5 {[%clk 0:02:57]} 6. e3 {[%clk 0:02:56]}  e6 {[%clk 0:02:52]} 7. Bxc4 {[%clk 0:02:57]}  Bb4 {[%clk 0:02:48]} 8. O-O {[%clk 0:02:57]}  O-O {[%clk 0:02:46]} 9. Re1 {[%clk 0:02:51]}  Ne4 {[%clk 0:02:43]} 10. Qb3 {[%clk 0:02:48]}  Qa5 {[%clk 0:02:36]} 11. Bd2 {[%clk 0:02:16]}  Nxd2 {[%clk 0:02:28]} 12. Nxd2 {[%clk 0:02:16]}  Nd7 {[%clk 0:02:19]} 13. e4 {[%clk 0:02:16]}  Bg6 {[%clk 0:02:18]} 14. Bd3 {[%clk 0:02:09]}  e5 {[%clk 0:02:08]} 15. Nc4 {[%clk 0:02:08]}  Bxc3 {[%clk 0:01:49]} 16. Nxa5 {[%clk 0:02:06]}  Bxa5 {[%clk 0:01:49]} 17. Qxb7 {[%clk 0:02:05]}  Bxe1 {[%clk 0:01:49]} 18. Qxd7 {[%clk 0:02:05]}  Rad8 {[%clk 0:01:44]} 19. Qh3 {[%clk 0:02:01]}  Bb4 {[%clk 0:01:36]} 20. dxe5 {[%clk 0:02:01]}  Rd4 {[%clk 0:01:33]} 21. f3 {[%clk 0:01:36]}  Rxd3 {[%clk 0:01:30]} 22. e6 {[%clk 0:01:30]}  fxe6 {[%clk 0:01:23]} 23. Qxe6+ {[%clk 0:01:29]}  Bf7 {[%clk 0:01:23]} 24. Qxc6 {[%clk 0:01:29]}  Rfd8 {[%clk 0:01:19]} 25. h4 {[%clk 0:01:26]}  Bd2 {[%clk 0:01:02]} 26. Qc7 {[%clk 0:01:06]}  Be3+ {[%clk 0:00:58]} 27. Kh2 {[%clk 0:01:06]}  Bb6 {[%clk 0:00:52]} 28. Qc6 {[%clk 0:01:01]}  Rd2 {[%clk 0:00:41]} 29. a5 {[%clk 0:01:00]}  Be3 {[%clk 0:00:35]} 30. Qc7 {[%clk 0:00:44]}  R2d7 {[%clk 0:00:27]} 31. Qe5 {[%clk 0:00:41]}  Bd4 {[%clk 0:00:24]} 32. Qf5 {[%clk 0:00:40]}  Bxb2 {[%clk 0:00:22]} 33. Rb1 {[%clk 0:00:38]}  Rd2 {[%clk 0:00:21]} 34. a6 {[%clk 0:00:35]}  h6 {[%clk 0:00:19]} 35. Qa5 {[%clk 0:00:31]}  Bf6 {[%clk 0:00:18]} 36. Rb7 {[%clk 0:00:29]}  Bxh4 {[%clk 0:00:16]} 37. Rxf7 {[%clk 0:00:27]}  Kxf7 {[%clk 0:00:15]} 38. Qh5+ {[%clk 0:00:28]}  Kg8 {[%clk 0:00:14]} 39. Qxh4 {[%clk 0:00:28]}  R2d6 {[%clk 0:00:13]} 40. Qe7 {[%clk 0:00:28]}  R8d7 {[%clk 0:00:13]} 41. Qe8+ {[%clk 0:00:28]}  Kh7 {[%clk 0:00:13]} 42. e5 {[%clk 0:00:28]}  Rd2 {[%clk 0:00:11]} 43. e6 {[%clk 0:00:27]}  R7d5 {[%clk 0:00:11]} 44. e7 {[%clk 0:00:26]}  Re5 {[%clk 0:00:09]} 45. Qf8 {[%clk 0:00:15]}  Rde2 {[%clk 0:00:09]} 46. e8=Q {[%clk 0:00:14]}  Rxe8 {[%clk 0:00:09]} 47. Qf5+ {[%clk 0:00:15]}  Kh8 {[%clk 0:00:08]} 48. Qc5 {[%clk 0:00:15]}  R8e7 {[%clk 0:00:08]} 49. Qc8+ {[%clk 0:00:14]}  Kh7 {[%clk 0:00:08]} 50. Qf5+ {[%clk 0:00:15]}  Kg8 {[%clk 0:00:09]} 51. Qc8+ {[%clk 0:00:15]}  Re8 {[%clk 0:00:09]} 52. Qc4+ {[%clk 0:00:14]}  Kh8 {[%clk 0:00:09]} 53. Kg3 {[%clk 0:00:13]}  R2e7 {[%clk 0:00:09]} 54. Qc5 {[%clk 0:00:13]}  Kg8 {[%clk 0:00:09]} 55. Kf4 {[%clk 0:00:13]}  Kf7 {[%clk 0:00:09]} 56. Kf5 {[%clk 0:00:12]}  g6+ {[%clk 0:00:08]} 57. Kf4 {[%clk 0:00:11]}  Re6 {[%clk 0:00:09]} 58. Kg3 {[%clk 0:00:11]}  R8e7 {[%clk 0:00:09]} 59. Qc4 {[%clk 0:00:10]}  Kg7 {[%clk 0:00:09]} 60. Kh3 {[%clk 0:00:10]}  h5 {[%clk 0:00:10]} 61. Kg3 {[%clk 0:00:11]}  Kh7 {[%clk 0:00:10]} 62. Kh3 {[%clk 0:00:10]}  Kh6 {[%clk 0:00:09]} 63. Kg3 {[%clk 0:00:09]}  g5 {[%clk 0:00:08]} 64. Kh3 {[%clk 0:00:09]}  Rf6 {[%clk 0:00:08]} 65. Kg3 {[%clk 0:00:09]}  Ree6 {[%clk 0:00:08]} 66. Qd4 {[%clk 0:00:06]}  Rxa6 {[%clk 0:00:07]} 67. Qd7 {[%clk 0:00:06]}  Rae6 {[%clk 0:00:05]} 68. Qxa7 {[%clk 0:00:05]}  Re1 {[%clk 0:00:04]} 69. Kh2 {[%clk 0:00:05]}  h4 {[%clk 0:00:04]} 70. Qd4 {[%clk 0:00:04]}  Ree6 {[%clk 0:00:04]} 71. Qd8 {[%clk 0:00:04]}  Kg6 {[%clk 0:00:04]} 72. Qg8+ {[%clk 0:00:03]}  Kf5 {[%clk 0:00:05]} 73. Qh7+ {[%clk 0:00:03]}  Rg6 {[%clk 0:00:05]} 74. Qf7+ {[%clk 0:00:03]}  Ref6 {[%clk 0:00:05]} 75. Qd7+ {[%clk 0:00:04]}  Ke5 {[%clk 0:00:05]} 76. Qf7 {[%clk 0:00:00]}  Rxf7 {[%clk 0:00:04]} 0-1


[Site "https://www.chess.com"]

[Event "Titled Tuesday Blitz August 22 Early 2023"]
[White "Warchol, Kamil"]
[Black "kaanadayhamle"]
[WhiteFideId "21858241"]
[WhiteElo "2501"]
[BlackElo "2359"]
[Result "0-1"]
[Round "11"]
[TimeControl "180+1"]
[Date "2023.08.22"]
[WhiteClock "0:00:00"]
[BlackClock "0:01:04"]
[Board "97"]

1. e4 {[%clk 0:02:58]}  c6 {[%clk 0:02:59]} 2. c4 {[%clk 0:02:55]}  d5 {[%clk 0:03:00]} 3. cxd5 {[%clk 0:02:56]}  cxd5 {[%clk 0:03:01]} 4. exd5 {[%clk 0:02:56]}  Nf6 {[%clk 0:03:01]} 5. Nc3 {[%clk 0:02:56]}  Nxd5 {[%clk 0:03:01]} 6. Nf3 {[%clk 0:02:57]}  Nxc3 {[%clk 0:03:02]} 7. bxc3 {[%clk 0:02:57]}  Nc6 {[%clk 0:03:02]} 8. d4 {[%clk 0:02:56]}  e6 {[%clk 0:03:03]} 9. Bd3 {[%clk 0:02:55]}  Bd6 {[%clk 0:03:03]} 10. Qc2 {[%clk 0:02:48]}  Qc7 {[%clk 0:03:03]} 11. O-O {[%clk 0:02:43]}  b6 {[%clk 0:02:59]} 12. Re1 {[%clk 0:02:37]}  Ne7 {[%clk 0:02:55]} 13. Ne5 {[%clk 0:02:34]}  Bxe5 {[%clk 0:02:50]} 14. Rxe5 {[%clk 0:02:35]}  Bb7 {[%clk 0:02:50]} 15. Bf4 {[%clk 0:02:11]}  Qd7 {[%clk 0:02:41]} 16. Rae1 {[%clk 0:02:01]}  Ng6 {[%clk 0:02:38]} 17. Bb5 {[%clk 0:01:41]}  Bc6 {[%clk 0:02:37]} 18. Bxc6 {[%clk 0:01:41]}  Qxc6 {[%clk 0:02:37]} 19. d5 {[%clk 0:01:41]}  Qb7 {[%clk 0:02:28]} 20. Qa4+ {[%clk 0:00:27]}  b5 {[%clk 0:02:28]} 21. Qb4 {[%clk 0:00:13]}  Nxe5 {[%clk 0:02:19]} 22. Rxe5 {[%clk 0:00:12]}  a5 {[%clk 0:02:06]} 23. Qd6 {[%clk 0:00:11]}  Qd7 {[%clk 0:02:02]} 24. Qc5 {[%clk 0:00:07]}  Rc8 {[%clk 0:02:01]} 25. Qa3 {[%clk 0:00:08]}  b4 {[%clk 0:02:00]} 26. cxb4 {[%clk 0:00:07]}  O-O {[%clk 0:02:00]} 27. bxa5 {[%clk 0:00:05]}  exd5 {[%clk 0:01:58]} 28. h3 {[%clk 0:00:05]}  Rc4 {[%clk 0:01:54]} 29. Bg3 {[%clk 0:00:05]}  Ra4 {[%clk 0:01:52]} 30. Qc3 {[%clk 0:00:05]}  d4 {[%clk 0:01:49]} 31. Qd3 {[%clk 0:00:05]}  Rxa2 {[%clk 0:01:42]} 32. a6 {[%clk 0:00:05]}  Qa4 {[%clk 0:01:35]} 33. Kh2 {[%clk 0:00:02]}  Ra3 {[%clk 0:01:25]} 34. Qd2 {[%clk 0:00:02]}  d3 {[%clk 0:01:22]} 35. Re7 {[%clk 0:00:02]}  Qxa6 {[%clk 0:01:19]} 36. Rd7 {[%clk 0:00:02]}  Ra2 {[%clk 0:01:12]} 37. Qxd3 {[%clk 0:00:02]}  Qxd3 {[%clk 0:01:12]} 38. Rxd3 {[%clk 0:00:03]}  Ra7 {[%clk 0:01:10]} 39. Rf3 {[%clk 0:00:04]}  f6 {[%clk 0:01:09]} 40. Bf4 {[%clk 0:00:05]}  Kf7 {[%clk 0:01:09]} 41. Be3 {[%clk 0:00:06]}  Rb7 {[%clk 0:01:08]} 42. Bf4 {[%clk 0:00:07]}  Re8 {[%clk 0:01:08]} 43. Bg3 {[%clk 0:00:08]}  g5 {[%clk 0:01:08]} 44. Kg1 {[%clk 0:00:08]}  Kg6 {[%clk 0:01:08]} 45. Kh2 {[%clk 0:00:09]}  f5 {[%clk 0:01:08]} 46. Ra3 {[%clk 0:00:02]}  f4 {[%clk 0:01:04]} 47. Ra6+ {[%clk 0:00:00]}  Kg7 {[%clk 0:01:04]} 0-1


[Site "https://www.chess.com"]

[Event "Titled Tuesday Blitz August 22 Early 2023"]
[White "Perez, Maximiliano"]
[Black "Coelho, Ramyres Santana"]
[WhiteFideId "117234"]
[BlackFideId "2120690"]
[WhiteElo "2498"]
[BlackElo "2342"]
[Result "0-1"]
[Round "11"]
[TimeControl "180+1"]
[Date "2023.08.22"]
[WhiteClock "0:00:33"]
[BlackClock "0:00:08"]
[Board "99"]

1. e4 {[%clk 0:02:27]}  c5 {[%clk 0:02:58]} 2. Nf3 {[%clk 0:02:24]}  d6 {[%clk 0:02:58]} 3. d4 {[%clk 0:02:24]}  cxd4 {[%clk 0:02:58]} 4. Nxd4 {[%clk 0:02:25]}  Nf6 {[%clk 0:02:58]} 5. Nc3 {[%clk 0:02:24]}  a6 {[%clk 0:02:58]} 6. Be3 {[%clk 0:02:23]}  e6 {[%clk 0:02:58]} 7. Be2 {[%clk 0:02:22]}  Be7 {[%clk 0:02:56]} 8. g4 {[%clk 0:02:22]}  O-O {[%clk 0:02:56]} 9. g5 {[%clk 0:02:22]}  Nfd7 {[%clk 0:02:55]} 10. h4 {[%clk 0:02:23]}  Qc7 {[%clk 0:02:54]} 11. Qd2 {[%clk 0:02:23]}  Nc6 {[%clk 0:02:54]} 12. O-O-O {[%clk 0:02:23]}  Rb8 {[%clk 0:02:53]} 13. f4 {[%clk 0:02:20]}  b5 {[%clk 0:02:52]} 14. Nxc6 {[%clk 0:02:18]}  Qxc6 {[%clk 0:02:53]} 15. a3 {[%clk 0:02:19]}  b4 {[%clk 0:02:50]} 16. axb4 {[%clk 0:02:19]}  Rxb4 {[%clk 0:02:51]} 17. Nd5 {[%clk 0:02:19]}  exd5 {[%clk 0:02:37]} 18. Qxb4 {[%clk 0:02:18]}  dxe4 {[%clk 0:02:36]} 19. Bc4 {[%clk 0:02:14]}  Nc5 {[%clk 0:02:14]} 20. Bd5 {[%clk 0:02:13]}  Qc7 {[%clk 0:02:07]} 21. Bxc5 {[%clk 0:02:08]}  dxc5 {[%clk 0:02:08]} 22. Qxe4 {[%clk 0:02:09]}  g6 {[%clk 0:02:03]} 23. Qc4 {[%clk 0:02:07]}  Bd6 {[%clk 0:01:54]} 24. h5 {[%clk 0:02:05]}  Bxf4+ {[%clk 0:01:53]} 25. Kb1 {[%clk 0:02:06]}  Bxg5 {[%clk 0:01:50]} 26. hxg6 {[%clk 0:02:06]}  hxg6 {[%clk 0:01:51]} 27. Qe4 {[%clk 0:02:04]}  Kg7 {[%clk 0:01:40]} 28. Rdg1 {[%clk 0:01:58]}  Bf6 {[%clk 0:01:30]} 29. Qe3 {[%clk 0:01:55]}  Bd4 {[%clk 0:01:08]} 30. Qh6+ {[%clk 0:01:55]}  Kf6 {[%clk 0:01:08]} 31. Rf1+ {[%clk 0:01:55]}  Ke7 {[%clk 0:01:07]} 32. Bxf7 {[%clk 0:01:21]}  Rxf7 {[%clk 0:00:56]} 33. Rxf7+ {[%clk 0:01:22]}  Kxf7 {[%clk 0:00:56]} 34. Qh7+ {[%clk 0:01:23]}  Bg7 {[%clk 0:00:56]} 35. Rf1+ {[%clk 0:01:23]}  Bf5 {[%clk 0:00:56]} 36. Qh4 {[%clk 0:01:18]}  Qe5 {[%clk 0:00:54]} 37. Qc4+ {[%clk 0:01:17]}  Kf8 {[%clk 0:00:49]} 38. Qb3 {[%clk 0:01:18]}  c4 {[%clk 0:00:45]} 39. Qb4+ {[%clk 0:01:17]}  Kg8 {[%clk 0:00:45]} 40. Re1 {[%clk 0:01:18]}  Qd5 {[%clk 0:00:32]} 41. Qb8+ {[%clk 0:01:11]}  Kh7 {[%clk 0:00:30]} 42. Qh2+ {[%clk 0:01:10]}  Kg8 {[%clk 0:00:18]} 43. Re8+ {[%clk 0:01:07]}  Kf7 {[%clk 0:00:17]} 44. Qe2 {[%clk 0:01:07]}  Be6 {[%clk 0:00:14]} 45. Rb8 {[%clk 0:00:59]}  Qe5 {[%clk 0:00:13]} 46. Rb7+ {[%clk 0:00:58]}  Kg8 {[%clk 0:00:12]} 47. Qf1 {[%clk 0:00:54]}  Bf6 {[%clk 0:00:09]} 48. Rb6 {[%clk 0:00:52]}  Kf7 {[%clk 0:00:09]} 49. Rb7+ {[%clk 0:00:52]}  Ke8 {[%clk 0:00:09]} 50. Qh1 {[%clk 0:00:47]}  Bd5 {[%clk 0:00:08]} 51. Qg1 {[%clk 0:00:37]}  Bxb7 {[%clk 0:00:08]} 52. Qxg6+ {[%clk 0:00:33]}  Ke7 {[%clk 0:00:08]} 0-1


[Site "https://www.chess.com"]

[Event "Titled Tuesday Blitz August 22 Early 2023"]
[White "Karamsetty, Jeevan"]
[Black "ExchangeAB"]
[WhiteFideId "2025337"]
[WhiteElo "2514"]
[BlackElo "2418"]
[Result "1-0"]
[Round "11"]
[TimeControl "180+1"]
[Date "2023.08.22"]
[WhiteClock "0:01:06"]
[BlackClock "0:00:13"]
[Board "102"]

1. e4 {[%clk 0:03:00]}  c6 {[%clk 0:03:00]} 2. d4 {[%clk 0:02:59]}  d5 {[%clk 0:03:01]} 3. Nc3 {[%clk 0:03:00]}  dxe4 {[%clk 0:03:01]} 4. Nxe4 {[%clk 0:03:01]}  Nf6 {[%clk 0:03:01]} 5. Nxf6+ {[%clk 0:02:58]}  exf6 {[%clk 0:03:02]} 6. Nf3 {[%clk 0:02:57]}  Bd6 {[%clk 0:03:02]} 7. Be3 {[%clk 0:02:51]}  O-O {[%clk 0:03:02]} 8. Be2 {[%clk 0:02:47]}  Bf5 {[%clk 0:03:02]} 9. O-O {[%clk 0:02:46]}  h6 {[%clk 0:03:02]} 10. Bd3 {[%clk 0:02:41]}  Qd7 {[%clk 0:02:59]} 11. Bxf5 {[%clk 0:02:39]}  Qxf5 {[%clk 0:03:00]} 12. c3 {[%clk 0:02:39]}  Nd7 {[%clk 0:02:59]} 13. Qb3 {[%clk 0:02:38]}  Nb6 {[%clk 0:02:44]} 14. c4 {[%clk 0:02:32]}  c5 {[%clk 0:02:38]} 15. Rfd1 {[%clk 0:02:19]}  Rfd8 {[%clk 0:02:29]} 16. a4 {[%clk 0:02:12]}  Qc8 {[%clk 0:02:09]} 17. dxc5 {[%clk 0:02:06]}  Bxc5 {[%clk 0:01:50]} 18. Rxd8+ {[%clk 0:02:04]}  Qxd8 {[%clk 0:01:51]} 19. Bxc5 {[%clk 0:02:04]}  Nd7 {[%clk 0:01:46]} 20. Rd1 {[%clk 0:01:58]}  Qc7 {[%clk 0:01:45]} 21. Be3 {[%clk 0:01:58]}  b6 {[%clk 0:01:40]} 22. h3 {[%clk 0:01:56]}  Rc8 {[%clk 0:01:40]} 23. Qb5 {[%clk 0:01:53]}  Nf8 {[%clk 0:01:35]} 24. b3 {[%clk 0:01:53]}  Qb7 {[%clk 0:01:07]} 25. Qf5 {[%clk 0:01:46]}  Re8 {[%clk 0:01:03]} 26. Qd5 {[%clk 0:01:43]}  Qe7 {[%clk 0:01:00]} 27. a5 {[%clk 0:01:39]}  Qa3 {[%clk 0:00:55]} 28. axb6 {[%clk 0:01:36]}  axb6 {[%clk 0:00:56]} 29. Qb5 {[%clk 0:01:29]}  Rb8 {[%clk 0:00:47]} 30. Bxb6 {[%clk 0:01:26]}  Ne6 {[%clk 0:00:43]} 31. c5 {[%clk 0:01:23]}  Nf4 {[%clk 0:00:41]} 32. Qc4 {[%clk 0:01:18]}  g5 {[%clk 0:00:38]} 33. c6 {[%clk 0:01:11]}  Ne6 {[%clk 0:00:22]} 34. c7 {[%clk 0:01:08]}  Nxc7 {[%clk 0:00:13]} 35. Qxc7 {[%clk 0:01:06]} 1-0


[Site "https://www.chess.com"]